bitfinex/quotes_SOLUSD_20250410
["timestamp","ask_amount","ask_price","bid_price","bid_amount"]
[1744283786586,81.5,113.46,113.45,8.8144]
[1744283786789,81.5,113.46,113.45,25.77738675]
[1744283787081,81.5,113.46,113.45,8.8144]
[1744283787272,81.5,113.46,113.45,25.77738675]
[1744283788383,81.5,113.46,113.44,25.77778675]
[1744283788970,81.5,113.46,113.43,16.99298675]
[1744283789179,81.5,113.46,113.43,0.03]
[1744283789789,81.5,113.46,113.43,16.99298675]
[1744283789995,81.5,113.46,113.43,25.80878675]
[1744283790290,81.5,113.46,113.44,16.96298675]
[1744283791372,81.5,113.46,113.43,25.80878675]
[1744283791696,81.5,113.46,113.43,0.03]
[1744283792792,81.5,113.45,113.43,0.03]
[1744283793675,81.5,113.44,113.43,0.03]
[1744283793888,35.61263561,113.44,113.43,0.03]
[1744283794288,18.64964886,113.44,113.43,0.03]
[1744283795990,16.96298675,113.45,113.43,0.03]
[1744283797301,81.5,113.47,113.44,16.96298675]
[1744283797513,81.5,113.47,113.45,16.96298675]
[1744283798003,81.5,113.47,113.46,16.96298675]
[1744283798300,81.5,113.5,113.46,16.96298675]
[1744283798488,81.5,113.5,113.47,16.96298675]
[1744283799083,81.5,113.5,113.46,16.96298675]
[1744283799280,81.5,113.5,113.47,16.96298675]
[1744283800402,81.5,113.5,113.46,8.8129]
[1744283800590,81.5,113.5,113.47,16.96298675]
[1744283801100,81.5,113.5,113.46,8.8129]
[1744283801285,81.5,113.5,113.48,16.96298675]
[1744283801805,81.5,113.5,113.47,16.96298675]
[1744283802383,98.46298675,113.5,113.45,25.77698675]
[1744283802698,35.61263561,113.49,113.45,16.96298675]
[1744283803305,98.46298675,113.5,113.45,25.77728675]
[1744283804089,98.46298675,113.5,113.45,16.96298675]
[1744283804405,35.61263561,113.48,113.43,0.03]
[1744283804710,81.5,113.47,113.43,16.99298675]
[1744283805216,81.5,113.47,113.44,16.96298675]
[1744283806308,81.5,113.47,113.44,25.77768675]
[1744283808510,81.5,113.47,113.45,16.96298675]
[1744283809023,81.5,113.47,113.44,8.8147]
[1744283809190,81.5,113.47,113.44,16.96298675]
[1744283810309,81.5,113.47,113.44,25.77808675]
[1744283811194,81.5,113.47,113.44,16.96298675]
[1744283811396,81.5,113.47,113.43,25.80868675]
[1744283812007,81.5,113.47,113.44,16.96298675]
[1744283812417,98.46298675,113.47,113.43,16.99298675]
[1744283812608,35.61263561,113.46,113.43,0.03]
[1744283813097,16.96298675,113.45,113.43,0.03]
[1744283813298,81.5,113.44,113.43,0.03]
[1744283814004,35.61263561,113.44,113.43,0.03]
[1744283815717,20.28424886,113.44,113.43,0.03]
[1744283815917,37.24723561,113.44,113.43,0.03]
[1744283818921,18.64964886,113.44,113.43,0.03]
[1744283819728,8.46432314,113.46,113.43,0.03]
[1744283819729,8.18,113.46,113.43,0.03]
[1744283820025,18.64964886,113.45,113.43,0.03]
[1744283821004,8.18,113.46,113.43,16.99298675]
[1744283821825,18.64964886,113.47,113.44,16.96298675]
[1744283822004,18.64964886,113.47,113.43,16.99298675]
[1744283822535,18.64964886,113.47,113.43,25.80858675]
[1744283824134,81.5,113.46,113.44,16.96298675]
[1744283825423,81.5,113.46,113.43,25.80858675]
[1744283825706,81.5,113.46,113.43,16.99298675]
[1744283825899,81.5,113.46,113.43,25.80888675]
[1744283826123,98.46298675,113.46,113.43,0.03]
[1744283826422,81.5,113.46,113.43,0.03]
[1744283827923,81.5,113.46,113.44,16.96298675]
[1744283828228,81.5,113.46,113.43,0.03]
[1744283828229,81.5,113.5,113.45,16.96298675]
[1744283828423,81.5,113.49,113.47,16.96298675]
[1744283828612,81.5,113.49,113.48,16.96298675]
[1744283828818,81.0425188,113.49,113.48,16.96298675]
[1744283829124,81.0425188,113.49,113.47,16.96298675]
[1744283831226,81.0425188,113.49,113.44,8.8148]
[1744283831418,81.0425188,113.48,113.44,25.77778675]
[1744283831614,98.00550555,113.48,113.43,8.8459]
[1744283831929,98.00550555,113.48,113.44,16.96298675]
[1744283832607,81.0425188,113.48,113.44,16.96298675]
[1744283832821,81.0425188,113.48,113.44,25.77808675]
[1744283833437,81.0425188,113.48,113.45,16.96298675]
[1744283834018,98.00550555,113.48,113.44,16.96298675]
[1744283834338,116.65515441,113.47,113.43,0.03]
[1744283834516,16.96298675,113.46,113.43,0.03]
[1744283834717,116.65515441,113.47,113.43,0.03]
[1744283835010,35.61263561,113.44,113.43,0.03]
[1744283836319,35.89695875,113.44,113.43,0.03]
[1744283837556,18.64964886,113.4,113.39,0.03]
[1744283837839,25.12298675,113.42,113.39,0.03]
[1744283838033,8.16,113.42,113.39,16.99298675]
[1744283838210,18.64964886,113.43,113.39,0.03]
[1744283838406,26.0,113.42,113.39,16.99298675]
[1744283838631,1.554,113.44,113.4,16.96298675]
[1744283838810,26.80964886,113.45,113.41,16.96298675]
[1744283839011,8.16,113.45,113.42,16.96298675]
[1744283839435,18.64964886,113.47,113.43,16.96298675]
[1744283840021,18.64964886,113.48,113.44,16.96298675]
[1744283840223,31.53858675,113.49,113.45,16.96298675]
[1744283840540,35.61263561,113.48,113.42,8.8167]
[1744283840833,81.5,113.47,113.44,16.96298675]
[1744283841547,98.46298675,113.47,113.43,16.96298675]
[1744283841935,98.46298675,113.47,113.42,16.96298675]
[1744283842334,35.61263561,113.46,113.41,16.96298675]
[1744283842522,81.5,113.45,113.41,16.96298675]
[1744283842728,81.5,113.45,113.42,16.96298675]
[1744283843328,81.5,113.45,113.43,16.96298675]
[1744283843552,81.5,113.45,113.44,16.96298675]
[1744283844338,81.5,113.45,113.44,25.77818675]
[1744283844647,81.5,113.45,113.44,27.39888675]
[1744283844852,81.5,113.5,113.44,55.84738675]
[1744283845026,81.5,113.5,113.48,16.96298675]
[1744283846246,0.063,113.51,113.47,8.8129]
[1744283846457,0.063,113.51,113.5,16.96298675]
[1744283848749,0.063,113.51,113.49,16.96298675]
[1744283849648,0.063,113.51,113.47,8.8129]
[1744283849850,0.063,113.51,113.49,25.77398675]
[1744283852152,0.063,113.51,113.5,16.96298675]
[1744283852972,0.0001,113.52,113.5,33.9259735]
[1744283853161,0.0001,113.52,113.51,33.9259735]
[1744283854176,0.0001,113.52,113.51,42.7356735]
[1744283855168,0.0001,113.52,113.51,25.77268675]
[1744283855869,0.0001,113.52,113.51,16.96298675]
[1744283856255,0.0001,113.52,113.51,25.77268675]
[1744283858773,0.0001,113.52,113.5,25.77338675]
[1744283859380,0.0001,113.52,113.51,16.96298675]
[1744283860366,0.0001,113.52,113.51,25.77268675]
[1744283861673,0.0001,113.52,113.51,8.8097]
[1744283861858,0.0001,113.52,113.5,16.96298675]
[1744283862051,0.0001,113.52,113.48,8.8121]
[1744283862251,0.0001,113.52,113.5,16.96298675]
[1744283862468,0.0001,113.52,113.49,16.96298675]
[1744283862670,0.0001,113.52,113.5,16.96298675]
[1744283865853,0.0001,113.52,113.49,16.96298675]
[1744283866160,0.0001,113.52,113.47,8.8129]
[1744283866353,98.46308675,113.52,113.48,16.96298675]
[1744283866551,98.46308675,113.52,113.47,25.77588675]
[1744283866982,98.46308675,113.52,113.48,16.96298675]
[1744283867359,81.5001,113.52,113.48,25.77438675]
[1744283867668,81.5001,113.52,113.5,16.96298675]
[1744283868554,81.5001,113.52,113.51,16.96298675]
[1744283868958,0.0001,113.52,113.51,16.96298675]
[1744283869350,0.0001,113.52,113.51,27.34878675]
[1744283871373,0.0001,113.52,113.51,25.77268675]
[1744283872598,0.0001,113.52,113.51,26.05700989]
[1744283873878,0.0001,113.52,113.51,63.01999664]
[1744283874994,0.0001,113.52,113.51,46.05700989]
[1744283875203,0.0001,113.52,113.51,25.77268675]
[1744283878706,0.0001,113.52,113.5,8.8105]
[1744283879003,0.0001,113.52,113.51,16.96298675]
[1744283880116,0.0001,113.52,113.51,8.8097]
[1744283880278,0.0001,113.52,113.51,25.77268675]
[1744283881921,0.0001,113.52,113.51,16.96298675]
[1744283882297,0.0001,113.52,113.5,25.77338675]
[1744283883406,0.0001,113.52,113.51,16.96298675]
[1744283885018,0.0001,113.52,113.5,25.77338675]
[1744283885225,0.0001,113.52,113.48,22.0288]
[1744283885416,0.0001,113.52,113.49,16.96298675]
[1744283885800,0.0001,113.52,113.49,16.96298675]
[1744283886113,0.0001,113.52,113.47,25.77588675]
[1744283886114,16.96308675,113.52,113.47,25.77588675]
[1744283886724,16.96298675,113.49,113.45,0.03]
[1744283887021,16.96298675,113.47,113.45,0.03]
[1744283887930,16.96298675,113.48,113.45,0.03]
[1744283888436,7.9524,113.49,113.45,16.99298675]
[1744283889325,7.9524,113.49,113.45,0.03]
[1744283889517,7.9524,113.49,113.45,16.99298675]
[1744283890221,24.91538675,113.49,113.45,16.99298675]
[1744283890524,24.91538675,113.49,113.45,25.80688675]
[1744283891323,16.96298675,113.48,113.45,0.03]
[1744283892938,24.91538675,113.49,113.45,0.03]
[1744283893403,7.9524,113.49,113.45,0.03]
[1744283893606,24.91538675,113.49,113.45,0.03]
[1744283894037,16.96298675,113.48,113.45,0.03]
[1744283895224,16.96298675,113.47,113.45,0.03]
[1744283895412,16.96298675,113.46,113.45,0.03]
[1744283896636,35.61263561,113.46,113.45,0.03]
[1744283897517,52.57562236,113.46,113.45,0.03]
[1744283897722,52.8599455,113.46,113.45,0.03]
[1744283901416,35.89695875,113.46,113.45,0.03]
[1744283908331,43.06405716,113.46,113.45,0.03]
[1744283908538,35.89695875,113.46,113.45,0.03]
[1744283911145,80.8297455,113.46,113.45,0.03]
[1744283912344,63.86675875,113.46,113.45,0.03]
[1744283913132,80.8297455,113.46,113.45,0.03]
[1744283914230,26.0,113.43,113.4,0.03]
[1744283914438,81.5,113.42,113.4,0.03]
[1744283914646,98.46298675,113.42,113.4,0.03]
[1744283915337,117.11263561,113.41,113.4,0.03]
[1744283916255,100.14964886,113.41,113.4,0.03]
[1744283917039,81.5,113.41,113.4,0.03]
[1744283917434,100.14964886,113.41,113.4,0.03]
[1744283917636,16.96298675,113.41,113.4,0.03]
[1744283917836,35.61263561,113.42,113.4,0.03]
[1744283918431,16.96298675,113.41,113.4,0.03]
[1744283918834,18.64964886,113.42,113.4,0.03]
[1744283919354,16.96298675,113.41,113.4,0.03]
[1744283920550,35.61263561,113.42,113.4,0.03]
[1744283920757,16.96298675,113.42,113.4,0.03]
[1744283921856,61.61263561,113.41,113.4,0.03]
[1744283922343,44.64964886,113.41,113.4,0.03]
[1744283923255,26.0,113.41,113.4,0.03]
[1744283924456,61.61263561,113.41,113.4,0.03]
[1744283924954,44.64964886,113.41,113.4,0.03]
[1744283925154,8.72,113.43,113.4,0.03]
[1744283925350,8.72,113.43,113.4,16.99298675]
[1744283926557,8.72,113.43,113.4,0.03]
[1744283927350,8.72,113.43,113.4,25.81128675]
[1744283928157,8.72,113.43,113.4,8.8483]
[1744283928666,8.72,113.43,113.4,25.81128675]
[1744283929262,90.22,113.43,113.4,25.81128675]
[1744283929765,90.22,113.43,113.4,25.81108675]
[1744283930555,90.22,113.43,113.4,0.03]
[1744283930966,107.18298675,113.43,113.4,0.03]
[1744283931281,90.22,113.43,113.4,8.8481]
[1744283931450,90.22,113.43,113.4,25.81108675]
[1744283931651,90.22,113.43,113.4,8.8481]
[1744283931866,90.22,113.43,113.4,25.81108675]
[1744283934572,81.5,113.43,113.4,25.81108675]
[1744283935665,18.64964886,113.42,113.4,0.03]
[1744283935968,16.96298675,113.41,113.4,0.03]
[1744283936276,44.59263561,113.41,113.4,0.03]
[1744283937975,18.64964886,113.43,113.4,0.03]
[1744283938184,42.96298675,113.43,113.4,0.03]
[1744283938857,8.98,113.44,113.4,0.03]
[1744283939059,25.94298675,113.44,113.4,1.5416]
[1744283940562,35.61263561,113.43,113.4,1.5416]
[1744283941285,16.96298675,113.42,113.4,0.03]
[1744283942460,16.96298675,113.41,113.4,0.03]
[1744283942692,35.61263561,113.41,113.4,0.03]
[1744283947387,35.61263561,113.41,113.39,0.03]
[1744283947388,100.14964886,113.4,113.39,0.03]
[1744283947575,18.933972,113.4,113.39,0.03]
[1744283947975,35.61263561,113.41,113.39,0.03]
[1744283949703,18.933972,113.4,113.39,0.03]
[1744283952281,18.64964886,113.36,113.35,0.03]
[1744283953203,35.46,113.37,113.35,0.03]
[1744283954706,9.46,113.37,113.35,0.03]
[1744283954890,9.46,113.37,113.35,16.99298675]
[1744283955080,18.64964886,113.4,113.35,16.99298675]
[1744283955808,81.5,113.39,113.35,0.03]
[1744283956280,81.5,113.39,113.35,16.99298675]
[1744283956902,98.46298675,113.39,113.35,16.99298675]
[1744283957979,81.5,113.39,113.36,18.61088675]
[1744283959107,81.5,113.39,113.36,1.6479]
[1744283960806,98.46298675,113.39,113.36,1.6479]
[1744283961000,81.5,113.39,113.36,1.6479]
[1744283962809,81.5,113.39,113.36,27.43208675]
[1744283963008,81.5,113.39,113.36,1.6479]
[1744283963318,98.46298675,113.39,113.36,1.6479]
[1744283964385,81.5,113.39,113.36,1.6479]
[1744283964590,98.46298675,113.39,113.36,1.6479]
[1744283964892,81.5,113.39,113.36,1.6479]
[1744283965238,98.46298675,113.39,113.36,1.6479]
[1744283965417,92.37567794,113.39,113.36,1.6479]
[1744283967791,81.5,113.39,113.36,10.4692]
[1744283969790,81.5,113.39,113.36,1.6479]
[1744283970196,81.5,113.39,113.38,10.87567794]
[1744283970417,92.37567794,113.43,113.38,10.87567794]
[1744283970619,10.87567794,113.42,113.36,32.5229]
[1744283970921,10.87567794,113.41,113.37,10.87567794]
[1744283971119,81.5,113.43,113.36,1.6479]
[1744283971120,10.87567794,113.4,113.36,1.6479]
[1744283971327,81.5,113.42,113.36,12.52357794]
[1744283971522,10.87567794,113.4,113.36,12.52357794]
[1744283971822,10.87567794,113.41,113.36,21.34497794]
[1744283972196,10.87567794,113.41,113.37,10.87567794]
[1744283972395,92.37567794,113.42,113.37,10.87567794]
[1744283972821,81.5,113.42,113.38,10.87567794]
[1744283973508,81.5,113.42,113.39,10.87567794]
[1744283973709,81.5,113.42,113.4,10.87567794]
[1744283973909,81.5,113.42,113.4,26.27157794]
[1744283975305,81.5,113.42,113.4,15.3959]
[1744283975620,81.5,113.42,113.4,6.5783]
[1744283975826,81.5,113.42,113.39,19.69437794]
[1744283976125,81.5,113.42,113.39,10.87567794]
[1744283976801,0.063,113.44,113.41,10.87567794]
[1744283977003,0.063,113.44,113.43,10.87567794]
[1744283978001,0.063,113.44,113.43,19.69167794]
[1744283978915,0.063,113.44,113.43,21.19647794]
[1744283979318,0.063,113.44,113.43,27.27640905]
[1744283980134,0.0001,113.44,113.43,27.56073219]
[1744283980307,81.563,113.5,113.43,49.60073219]
[1744283980510,81.563,113.5,113.47,16.95560905]
[1744283981508,81.563,113.5,113.46,25.76890905]
[1744283982934,81.563,113.5,113.47,16.95560905]
[1744283983131,81.563,113.5,113.48,16.95560905]
[1744283983318,81.563,113.5,113.49,16.95560905]
[1744283983631,81.563,113.5,113.48,18.61550905]
[1744283984719,81.563,113.5,113.48,1.6599]
[1744283985629,81.563,113.5,113.47,25.76820905]
[1744283986132,81.563,113.5,113.47,16.95560905]
[1744283986632,81.563,113.5,113.47,25.76840905]
[1744283987536,81.563,113.5,113.47,8.8128]
[1744283987936,81.563,113.5,113.46,25.76880905]
[1744283988415,81.563,113.5,113.47,16.95560905]
[1744283988821,81.563,113.5,113.48,16.95560905]
[1744283989327,81.563,113.5,113.49,16.95560905]
[1744283989630,81.563,113.5,113.46,47.80290905]
[1744283989824,81.563,113.5,113.49,16.95560905]
[1744283991044,81.563,113.5,113.48,16.95560905]
[1744283991635,81.563,113.5,113.47,25.76840905]
[1744283994430,81.563,113.5,113.48,16.95560905]
[1744283995246,81.563,113.5,113.49,16.95560905]
[1744283995439,0.063,113.5,113.49,16.95560905]
[1744283995820,0.063,113.5,113.49,25.76690905]
[1744283996620,0.063,113.5,113.49,16.95560905]
[1744283997435,0.063,113.5,113.49,25.76690905]
[1744284001532,0.063,113.5,113.49,19.65716166]
[1744284002933,0.063,113.5,113.49,8.8113]
[1744284003235,0.063,113.5,113.49,19.65716166]
[1744284003435,0.063,113.5,113.49,21.6052848]
[1744284003822,0.0001,113.5,113.49,28.2602848]
[1744284004041,0.063,113.51,113.49,66.90993366]
[1744284004339,0.063,113.51,113.5,10.84586166]
[1744284005048,0.0001,113.51,113.5,19.65636166]
[1744284005247,0.0001,113.52,113.5,19.9406848]
[1744284005455,0.0001,113.52,113.51,33.86377812]
[1744284006431,0.0001,113.52,113.51,42.67347812]
[1744284006653,0.063,113.54,113.53,26.0]
[1744284006874,0.063,113.54,113.53,44.8360122]
[1744284007072,0.063,113.54,113.53,51.3898122]
[1744284008767,0.063,113.54,113.53,60.1980122]
[1744284011264,0.063,113.54,113.53,25.74008906]
[1744284014765,0.063,113.54,113.53,26.0244122]
[1744284014945,0.0001,113.57,113.54,0.28432314]
[1744284015150,0.0001,113.57,113.56,0.28432314]
[1744284015351,0.0001,113.57,113.56,17.2162122]
[1744284016456,0.0001,113.57,113.56,26.0221122]
[1744284021479,0.0001,113.57,113.56,44.67176106]
[1744284021888,0.0001,113.57,113.56,26.0221122]
[1744284022688,0.0001,113.57,113.56,8.8059]
[1744284022889,0.0001,113.57,113.56,25.73778906]
[1744284025467,0.0001,113.57,113.55,8.8066]
[1744284025671,0.0001,113.57,113.56,16.93188906]
[1744284027994,0.0001,113.57,113.56,25.73778906]
[1744284029280,0.0001,113.57,113.56,10.83248118]
[1744284031391,0.0001,113.57,113.56,19.63838118]
[1744284033277,0.0001,113.57,113.56,25.72843187]
[1744284035583,0.0001,113.57,113.56,16.92253187]
[1744284036869,0.0001,113.57,113.56,25.72843187]
[1744284037284,0.0001,113.57,113.56,26.01275501]
[1744284039371,0.0001,113.57,113.56,25.72843187]
[1744284040369,0.0001,113.57,113.56,26.01275501]
[1744284046371,0.0001,113.57,113.54,8.807]
[1744284046572,0.0001,113.57,113.54,25.72953187]
[1744284046974,0.0001,113.57,113.55,16.92253187]
[1744284047173,0.0001,113.57,113.56,16.92253187]
[1744284047985,0.0001,113.57,113.56,17.20685501]
[1744284048591,0.0001,113.57,113.56,26.01275501]
[1744284050101,0.063,113.58,113.57,17.20685501]
[1744284050797,0.063,113.58,113.57,26.01195501]
[1744284053179,0.0001,113.58,113.57,42.93448688]
[1744284054376,0.063,113.62,113.58,38.933972]
[1744284054573,0.063,113.62,113.61,16.92253187]
[1744284054900,0.063,113.62,113.61,25.72453187]
[1744284055117,0.063,113.62,113.61,26.00885501]
[1744284055793,7.25664,113.67,113.62,0.28432314]
[1744284056001,0.76634,113.67,113.66,16.92253187]
[1744284056212,0.063,113.69,113.66,16.92253187]
[1744284056380,0.063,113.69,113.67,16.92253187]
[1744284056884,0.063,113.69,113.67,25.71973187]
[1744284057294,0.063,113.69,113.68,16.92253187]
[1744284058694,0.063,113.69,113.68,17.20685501]
[1744284058896,0.063,113.69,113.68,26.00345501]
[1744284060779,0.063,113.69,113.68,25.71913187]
[1744284060984,0.063,113.69,113.68,16.92253187]
[1744284062099,0.063,113.69,113.67,8.7973]
[1744284062308,0.063,113.69,113.67,16.92253187]
[1744284062685,0.063,113.69,113.68,16.92253187]
[1744284064294,0.063,113.69,113.68,25.71913187]
[1744284066384,0.063,113.69,113.68,16.92253187]
[1744284066580,0.063,113.69,113.67,16.92253187]
[1744284067487,0.063,113.69,113.68,16.92253187]
[1744284068218,0.063,113.69,113.67,16.92253187]
[1744284068592,0.063,113.69,113.67,25.71973187]
[1744284069395,0.063,113.69,113.67,16.92253187]
[1744284070324,0.063,113.69,113.66,8.7977]
[1744284070505,0.063,113.69,113.65,8.7989]
[1744284070704,0.063,113.69,113.66,16.92253187]
[1744284071694,0.063,113.69,113.64,30.7977]
[1744284072012,0.063,113.69,113.66,16.92253187]
[1744284072715,0.063,113.69,113.64,30.7977]
[1744284072911,0.063,113.69,113.67,16.92253187]
[1744284075623,0.063,113.69,113.66,25.72033187]
[1744284075924,0.063,113.69,113.66,16.92253187]
[1744284076328,1.5793,113.69,113.65,16.92253187]
[1744284076800,6.1374,113.68,113.65,16.92253187]
[1744284076995,6.1374,113.68,113.64,16.92253187]
[1744284077294,6.1374,113.68,113.63,8.8004]
[1744284077295,23.05993187,113.68,113.63,8.8004]
[1744284077495,35.57218073,113.67,113.62,8.8009]
[1744284077698,98.42253187,113.66,113.62,16.92253187]
[1744284077894,98.42253187,113.66,113.61,25.75413187]
[1744284078617,98.42253187,113.66,113.62,16.92253187]
[1744284079599,98.42253187,113.66,113.61,16.95253187]
[1744284079822,118.67298073,113.65,113.61,16.95253187]
[1744284080000,23.16473187,113.62,113.61,0.03]
[1744284080525,6.2422,113.62,113.61,0.03]
[1744284083617,81.5,113.64,113.61,0.03]
[1744284084325,81.5,113.64,113.61,16.95253187]
[1744284084515,81.5,113.64,113.61,0.03]
[1744284085533,98.42253187,113.64,113.61,0.03]
[1744284086427,35.57218073,113.63,113.61,0.03]
[1744284087222,18.64964886,113.63,113.61,0.03]
[1744284088328,81.5,113.64,113.61,16.95253187]
[1744284088514,81.5,113.64,113.63,16.92253187]
[1744284088719,81.5,113.64,113.63,25.72293187]
[1744284089616,81.5,113.67,113.63,25.72293187]
[1744284089933,35.57218073,113.66,113.62,16.92253187]
[1744284090128,35.57218073,113.66,113.61,16.95253187]
[1744284091833,16.92253187,113.65,113.61,16.95253187]
[1744284092135,35.57218073,113.66,113.61,16.95253187]
[1744284092522,35.57218073,113.66,113.62,16.92253187]
[1744284096114,35.57218073,113.66,113.61,0.03]
[1744284096313,16.92253187,113.65,113.61,0.03]
[1744284098342,16.92253187,113.65,113.61,16.95253187]
[1744284099344,98.42253187,113.65,113.61,16.95253187]
[1744284099925,81.5,113.65,113.61,16.95253187]
[1744284100126,81.5,113.65,113.61,0.03]
[1744284100343,81.5,113.65,113.61,16.95253187]
[1744284100535,81.5,113.65,113.61,25.75433187]
[1744284101656,81.5,113.65,113.61,16.95253187]
[1744284101944,81.5,113.65,113.61,0.03]
[1744284102145,81.5,113.65,113.61,16.95253187]
[1744284104624,81.5,113.65,113.61,25.75453187]
[1744284106145,98.42253187,113.65,113.61,0.03]
[1744284106343,98.42253187,113.65,113.61,16.95253187]
[1744284107138,81.5,113.65,113.61,16.95253187]
[1744284107935,81.5,113.65,113.63,16.92253187]
[1744284108541,81.5,113.65,113.63,25.72293187]
[1744284111438,81.5,113.65,113.62,16.92253187]
[1744284111732,98.42253187,113.65,113.61,0.03]
[1744284114561,81.5,113.65,113.61,16.95253187]
[1744284114966,98.42253187,113.65,113.61,16.95253187]
[1744284117466,98.42253187,113.65,113.61,0.03]
[1744284120861,81.5,113.65,113.61,0.03]
[1744284121061,81.5,113.65,113.61,16.95253187]
[1744284121361,81.5,113.65,113.61,10.85425371]
[1744284122369,92.32425371,113.65,113.61,0.03]
[1744284123365,81.5,113.65,113.61,0.03]
[1744284123566,92.32425371,113.65,113.61,0.03]
[1744284123756,10.82425371,113.63,113.61,0.03]
[1744284123952,29.47390257,113.62,113.61,0.03]
[1744284124357,38.01390257,113.62,113.61,0.03]
[1744284125264,44.1137437,113.62,113.61,0.03]
[1744284129153,8.54,113.62,113.61,0.03]
[1744284129364,8.54,113.62,113.61,16.95409484]
[1744284129570,18.64964886,113.64,113.61,16.95409484]
[1744284129965,25.46409484,113.66,113.62,16.92409484]
[1744284130159,6.4527,113.67,113.62,16.92409484]
[1744284130358,13.70535835,113.69,113.65,16.92409484]
[1744284130572,18.64964886,113.68,113.65,16.92409484]
[1744284130857,26.0,113.66,113.65,16.92409484]
[1744284131054,26.0,113.66,113.64,16.92409484]
[1744284131260,18.64964886,113.68,113.64,16.92409484]
[1744284132380,16.92409484,113.68,113.64,16.92409484]
[1744284132596,26.0,113.66,113.64,16.92409484]
[1744284133960,26.0,113.66,113.62,16.92409484]
[1744284134162,81.5,113.65,113.62,16.92409484]
[1744284136982,81.5,113.65,113.61,16.95409484]
[1744284137374,81.5,113.65,113.61,25.75589484]
[1744284137779,81.5,113.65,113.62,16.92409484]
[1744284137965,81.5,113.65,113.61,25.75589484]
[1744284139486,81.5,113.65,113.62,16.92409484]
[1744284140390,81.5,113.65,113.61,16.95409484]
[1744284141068,81.5,113.65,113.61,25.75549484]
[1744284141266,81.5,113.65,113.62,16.92409484]
[1744284141478,81.5,113.65,113.63,16.92409484]
[1744284141789,81.5,113.65,113.64,16.92409484]
[1744284142786,81.5,113.65,113.63,16.92409484]
[1744284143577,81.5,113.65,113.62,16.92409484]
[1744284143778,81.5,113.65,113.63,16.92409484]
[1744284143974,81.5,113.65,113.64,16.92409484]
[1744284146282,81.5,113.65,113.63,8.8001]
[1744284146579,81.5,113.65,113.64,16.92409484]
[1744284147073,81.5,113.65,113.62,8.8008]
[1744284147278,81.5,113.65,113.62,16.92409484]
[1744284147687,81.5,113.65,113.61,8.8317]
[1744284147880,81.5,113.65,113.62,16.92409484]
[1744284148500,81.5,113.65,113.61,16.95409484]
[1744284148701,98.42409484,113.65,113.61,0.03]
[1744284149009,98.42409484,113.65,113.61,16.95409484]
[1744284149183,81.5,113.65,113.61,16.95409484]
[1744284150909,81.5,113.65,113.61,25.75579484]
[1744284152198,81.5,113.65,113.62,16.92409484]
[1744284153198,81.5,113.65,113.63,16.92409484]
[1744284153390,81.5,113.65,113.63,10.82039678]
[1744284154379,8.34,113.68,113.64,10.82039678]
[1744284156799,92.38339678,113.69,113.64,10.82039678]
[1744284156999,92.38339678,113.69,113.65,10.82039678]
[1744284158415,81.563,113.69,113.65,10.82039678]
[1744284158594,92.38339678,113.69,113.65,10.82039678]
[1744284158796,92.38339678,113.69,113.65,19.61919678]
[1744284159421,92.38339678,113.69,113.66,10.82039678]
[1744284159422,81.563,113.69,113.66,10.82039678]
[1744284160695,81.563,113.69,113.66,19.61849678]
[1744284161487,81.563,113.69,113.63,23.6144]
[1744284161712,92.38339678,113.69,113.65,10.82039678]
[1744284162626,92.38339678,113.69,113.65,19.61919678]
[1744284163704,81.563,113.69,113.65,19.61919678]
[1744284166320,92.38339678,113.69,113.65,19.61919678]
[1744284166617,92.38339678,113.69,113.65,10.82039678]